bitfinex/quotes_BTCUSD_20241014
["timestamp","ask_amount","ask_price","bid_price","bid_amount"]
[1728943999169,0.00249,65986.0,65985.0,1.45265787]
[1728943999446,0.00249,65986.0,65985.0,1.56265787]
[1728944001271,0.00249,65986.0,65985.0,1.33676001]
[1728944001508,0.00249,65986.0,65985.0,1.56265787]
[1728944002576,0.00249,65986.0,65985.0,2.01730787]
[1728944004971,0.00249,65986.0,65985.0,2.00730787]
[1728944005173,0.00249,65986.0,65985.0,2.01730787]
[1728944007797,0.00249,65986.0,65985.0,2.00730787]
[1728944007997,0.00249,65986.0,65985.0,2.01730787]
[1728944013409,0.00249,65986.0,65985.0,2.00730787]
[1728944013628,0.00249,65986.0,65985.0,2.01730787]
[1728944016164,0.00249,65986.0,65985.0,1.31730787]
[1728944016653,0.000825,66000.0,65999.0,0.156517]
[1728944017078,0.02165503,66000.0,65999.0,0.99352327]
[1728944017295,0.02165503,66000.0,65999.0,0.99049333]
[1728944017504,0.000825,66000.0,65999.0,0.99049333]
[1728944017752,0.22740538,66019.0,66018.0,0.005]
[1728944017951,0.24830148,66019.0,66018.0,0.76442147]
[1728944018154,0.24830148,66019.0,66018.0,0.99031933]
[1728944018155,0.03224334,66019.0,66018.0,0.99031933]
[1728944018346,0.01134724,66019.0,66018.0,0.99031933]
[1728944018558,0.000826,66025.0,66024.0,0.005]
[1728944018768,0.01216563,66025.0,66024.0,0.53588633]
[1728944018978,0.000826,66025.0,66024.0,0.53588633]
[1728944019882,0.000826,66025.0,66024.0,0.48631437]
[1728944020576,0.000826,66025.0,66024.0,0.33985437]
[1728944020793,0.001826,66025.0,66024.0,0.50231437]
[1728944029635,0.001826,66025.0,66024.0,0.3487859]
[1728944030295,0.02280767,66025.0,66024.0,0.3487859]
[1728944030512,0.001826,66025.0,66024.0,0.3487859]
[1728944031237,0.001826,66025.0,66024.0,0.3504359]
[1728944040547,0.001826,66025.0,66024.0,0.17411]
[1728944040768,0.001826,66025.0,66024.0,0.3504359]
[1728944041856,0.001826,66025.0,66024.0,0.28693405]
[1728944042326,0.001826,66025.0,66024.0,0.40278696]
[1728944042589,0.001826,66025.0,66024.0,0.3997581]
[1728944043713,0.001826,66025.0,66024.0,0.28693405]
[1728944047461,0.0131836,66025.0,66024.0,0.28693405]
[1728944048915,0.04159549,66025.0,66024.0,0.28693405]
[1728944049328,0.02738948,66025.0,66024.0,0.28693405]
[1728944052687,0.02638948,66025.0,66024.0,0.26593405]
[1728944052857,0.02738948,66025.0,66024.0,0.27593405]
[1728944053057,0.02738948,66025.0,66024.0,0.28493405]
[1728944053273,0.0131836,66025.0,66024.0,0.28493405]
[1728944054446,0.02738979,66025.0,66024.0,0.28493405]
[1728944054647,0.0131836,66025.0,66024.0,0.28493405]
[1728944057876,0.001826,66025.0,66024.0,0.28493405]
[1728944058083,0.01319088,66025.0,66024.0,0.28493405]
[1728944058935,0.01319088,66025.0,66024.0,0.3977581]
[1728944060087,0.000826,66029.0,66028.0,0.15145]
[1728944060320,0.000826,66029.0,66028.0,1.16867657]
[1728944060519,0.000826,66029.0,66028.0,1.05585252]
[1728944061070,0.000826,66029.0,66028.0,1.75585252]
[1728944061744,0.000826,66029.0,66028.0,1.76985252]
[1728944064335,0.000826,66029.0,66028.0,1.78385252]
[1728944067806,0.000826,66029.0,66028.0,1.77885252]
[1728944068013,0.000826,66029.0,66028.0,1.78385252]
[1728944070364,0.000826,66029.0,66028.0,1.77885252]
[1728944070586,0.000826,66029.0,66028.0,1.78385252]
[1728944071490,0.000826,66029.0,66028.0,1.67102847]
[1728944071730,0.000826,66029.0,66028.0,1.78385252]
[1728944074221,0.000826,66029.0,66028.0,1.77885252]
[1728944074428,0.000826,66029.0,66028.0,1.78385252]
[1728944080186,0.000826,66029.0,66028.0,1.75585252]
[1728944080589,0.000826,66029.0,66028.0,1.78385252]
[1728944081019,0.000826,66029.0,66028.0,1.76985252]
[1728944081220,0.000826,66029.0,66028.0,1.78385252]
[1728944081650,0.000826,66029.0,66028.0,1.79385252]
[1728944081881,0.000826,66029.0,66028.0,1.77985252]
[1728944082295,0.000826,66029.0,66028.0,1.79385252]
[1728944088655,0.000826,66029.0,66028.0,1.89385252]
[1728944088859,0.000826,66031.0,66030.0,0.54637005]
[1728944089082,0.000826,66031.0,66030.0,1.85623852]
[1728944090125,0.000826,66031.0,66030.0,1.87023852]
[1728944090341,0.000826,66031.0,66030.0,1.88423852]
[1728944091627,0.000826,66031.0,66030.0,1.87023852]
[1728944092143,0.000826,66031.0,66030.0,1.88423852]
[1728944092375,0.000826,66031.0,66030.0,1.88223852]
[1728944092588,0.000826,66031.0,66030.0,1.85423852]
[1728944092793,0.000826,66031.0,66030.0,1.86823852]
[1728944093012,0.000826,66031.0,66030.0,1.88223852]
[1728944093222,0.000826,66031.0,66030.0,1.86823852]
[1728944093634,0.000826,66031.0,66030.0,1.88423852]
[1728944093852,0.000826,66031.0,66030.0,1.88223852]
[1728944094686,0.000826,66031.0,66030.0,1.87023852]
[1728944094911,0.000826,66031.0,66030.0,1.85623852]
[1728944095130,0.000826,66031.0,66030.0,1.88223852]
[1728944095560,0.000826,66031.0,66030.0,1.86823852]
[1728944095832,0.000826,66031.0,66030.0,1.88423852]
[1728944096044,0.000826,66031.0,66030.0,1.89193511]
[1728944099924,0.000826,66031.0,66030.0,1.88423852]
[1728944100321,0.000826,66031.0,66030.0,1.67941447]
[1728944100555,0.000826,66031.0,66030.0,1.59231447]
[1728944100727,0.000826,66031.0,66030.0,1.70513852]
[1728944104235,0.000826,66031.0,66030.0,1.00513852]
[1728944106637,0.079626,66031.0,66030.0,1.00513852]
[1728944107099,0.000826,66031.0,66030.0,1.00513852]
[1728944110860,0.000826,66031.0,66030.0,0.89231447]
[1728944111122,0.000826,66031.0,66030.0,1.00513852]
[1728944111643,0.079626,66031.0,66030.0,0.633786]
[1728944111872,0.177626,66031.0,66030.0,0.633786]
[1728944112370,0.177626,66031.0,66030.0,0.619786]
[1728944112685,0.177626,66031.0,66030.0,0.618786]
[1728944112923,0.177626,66031.0,66030.0,0.632786]
[1728944113164,0.177626,66031.0,66030.0,0.619786]
[1728944113380,0.177626,66031.0,66030.0,0.614786]
[1728944113606,0.177626,66031.0,66030.0,0.624786]
[1728944114591,0.079626,66031.0,66030.0,0.624786]
[1728944119481,0.079626,66031.0,66030.0,0.89113852]
[1728944119482,0.000826,66031.0,66030.0,0.89113852]
[1728944119918,0.000826,66031.0,66030.0,0.77831447]
[1728944120129,0.000826,66031.0,66030.0,0.89113852]
[1728944120988,0.000826,66031.0,66030.0,0.77831447]
[1728944124745,0.000826,66031.0,66030.0,0.89113852]
[1728944126777,0.000826,66031.0,66030.0,0.73761005]
[1728944126778,0.079226,66031.0,66030.0,0.73761005]
[1728944131209,0.079226,66031.0,66030.0,0.47334]
[1728944131399,0.18197156,66031.0,66030.0,0.47334]
[1728944131617,0.18197156,66031.0,66030.0,0.624786]
[1728944131835,0.19329724,66031.0,66030.0,0.73761005]
[1728944132247,0.22166162,66031.0,66030.0,0.73761005]
[1728944135733,0.20747943,66031.0,66030.0,0.73761005]
[1728944135937,0.22166136,66031.0,66030.0,0.73761005]
[1728944137543,0.13026136,66031.0,66030.0,0.73761005]
[1728944137746,0.02349724,66031.0,66030.0,0.73761005]
[1728944138192,0.01217156,66031.0,66030.0,0.73761005]
[1728944138396,0.000826,66031.0,66030.0,0.73761005]
[1728944141700,0.01217463,66031.0,66030.0,0.73761005]
[1728944145197,0.000826,66031.0,66030.0,0.73761005]
[1728944147534,0.000826,66031.0,66030.0,0.624786]
[1728944147746,0.000826,66031.0,66030.0,0.73761005]
[1728944147952,0.01163484,66031.0,66030.0,0.73761005]
[1728944148216,0.000826,66031.0,66030.0,0.73761005]
[1728944148849,0.01163484,66031.0,66030.0,0.73761005]
[1728944149067,0.000826,66031.0,66030.0,0.73761005]
[1728944149251,0.000826,66031.0,66030.0,0.58616405]
[1728944149252,0.01163484,66031.0,66030.0,0.58616405]
[1728944149387,0.000826,66031.0,66030.0,0.58616405]
[1728944149598,0.01163667,66031.0,66030.0,0.58616405]
[1728944150042,0.16308067,66031.0,66030.0,0.58616405]
[1728944152145,0.20677263,66031.0,66030.0,0.58616405]
[1728944152373,0.20677263,66031.0,66030.0,0.47334]
[1728944152594,0.28797263,66031.0,66030.0,0.47334]
[1728944152814,0.33331721,66031.0,66030.0,0.47334]
[1728944153335,0.28797263,66031.0,66030.0,0.47334]
[1728944154283,0.88255485,66031.0,66030.0,0.47334]
[1728944154999,0.88255485,66031.0,66030.0,0.45434]
[1728944155222,0.90561278,66031.0,66030.0,0.45434]
[1728944155445,0.90861278,66031.0,66030.0,0.45434]
[1728944155893,0.8924767,66031.0,66030.0,0.45434]
[1728944156120,0.8934767,66031.0,66030.0,0.45534]
[1728944156626,0.78065265,66031.0,66030.0,0.45534]
[1728944156828,0.78587199,66031.0,66030.0,0.45534]
[1728944157052,0.77073929,66031.0,66030.0,0.45534]
[1728944157270,0.77273929,66031.0,66030.0,0.45534]
[1728944157493,0.76973929,66031.0,66030.0,0.45434]
[1728944157713,0.76973929,66031.0,66030.0,0.45634]
[1728944157714,0.77673929,66031.0,66030.0,0.45634]
[1728944158177,0.77373929,66031.0,66030.0,0.45534]
[1728944158459,0.7472208,66031.0,66030.0,0.45634]
[1728944158703,0.77671927,66031.0,66030.0,0.45634]
[1728944159413,0.89009903,66031.0,66030.0,0.45634]
[1728944159875,0.77671927,66031.0,66030.0,0.45634]
[1728944160105,0.89010277,66031.0,66030.0,0.45634]
[1728944160791,0.77671927,66031.0,66030.0,0.45634]
[1728944161272,0.71884627,66031.0,66030.0,0.45634]
[1728944161491,0.77668759,66031.0,66030.0,0.45634]
[1728944161947,0.79181424,66031.0,66030.0,0.45634]
[1728944162180,0.77668759,66031.0,66030.0,0.45634]
[1728944162661,1.00002685,66031.0,66030.0,0.45634]
[1728944162909,0.88867865,66031.0,66030.0,0.45634]
[1728944163133,0.88867865,66031.0,66030.0,0.42221551]
[1728944163358,0.86399417,66031.0,66030.0,0.42221551]
[1728944163593,0.87911415,66031.0,66030.0,0.42221551]
[1728944164031,0.87911408,66031.0,66030.0,0.42221551]
[1728944164478,0.86399417,66031.0,66030.0,0.42221551]
[1728944164938,0.87911408,66031.0,66030.0,0.42221551]
[1728944165158,0.87889968,66031.0,66030.0,0.42221551]
[1728944165645,0.87889358,66031.0,66030.0,0.42221551]
[1728944166160,0.86377977,66031.0,66030.0,0.42221551]
[1728944167859,0.87888814,66031.0,66030.0,0.42221551]
[1728944168761,0.86377977,66031.0,66030.0,0.42221551]
[1728944168976,0.87888732,66031.0,66030.0,0.42221551]
[1728944169209,0.86377977,66031.0,66030.0,0.42221551]
[1728944169687,0.86374509,66031.0,66030.0,0.42221551]
[1728944170090,0.86374509,66031.0,66030.0,0.42386551]
[1728944170720,0.86368125,66031.0,66030.0,0.42386551]
[1728944170943,0.73488125,66031.0,66030.0,0.42386551]
[1728944171152,0.74488125,66031.0,66030.0,0.42386551]
[1728944171373,0.73070001,66031.0,66030.0,0.42386551]
[1728944172231,0.82130882,66031.0,66030.0,0.42386551]
[1728944172456,0.75370001,66031.0,66030.0,0.42386551]
[1728944173078,0.73952221,66031.0,66030.0,0.42386551]
[1728944173312,0.64531916,66031.0,66030.0,0.42286551]
[1728944173591,0.768749,66031.0,66030.0,0.42186551]
[1728944173793,0.770749,66031.0,66030.0,0.42286551]
[1728944173996,0.773749,66031.0,66030.0,0.42386551]
[1728944174415,0.75109433,66031.0,66030.0,0.42386551]
[1728944174622,0.66047497,66031.0,66030.0,0.42386551]
[1728944175070,0.75108727,66031.0,66030.0,0.42386551]
[1728944175484,0.66047497,66031.0,66030.0,0.42386551]
[1728944176118,0.4889465,66031.0,66030.0,0.42386551]
[1728944176323,0.3839465,66031.0,66030.0,0.42386551]
[1728944176944,0.47456839,66031.0,66030.0,0.42386551]
[1728944177196,0.0371399,66031.0,66030.0,0.86303556]
[1728944177392,0.02497144,66031.0,66030.0,0.86403556]
[1728944177598,0.01716077,66031.0,66030.0,0.86503556]
[1728944177811,0.01416077,66031.0,66030.0,0.86403556]
[1728944178259,0.01716077,66031.0,66030.0,0.86403556]
[1728944178482,0.01416077,66031.0,66030.0,0.86403556]
[1728944178945,0.01216077,66031.0,66030.0,0.86303556]
[1728944179160,0.01416077,66031.0,66030.0,0.86303556]
[1728944179594,0.014162,66031.0,66030.0,0.86303556]
[1728944179811,0.012162,66031.0,66030.0,0.87003556]
[1728944179956,0.012162,66031.0,66030.0,0.87803556]
[1728944180802,0.000826,66031.0,66030.0,0.87803556]
[1728944181008,0.01216204,66031.0,66030.0,0.87803556]
[1728944181242,0.000826,66031.0,66030.0,0.87803556]
[1728944186967,0.01215556,66031.0,66030.0,0.87803556]
[1728944187189,0.000826,66031.0,66030.0,0.87803556]
[1728944201440,0.000826,66031.0,66030.0,1.14438808]
[1728944201727,0.22740538,66050.0,66049.0,0.151402]
[1728944201933,0.22740538,66050.0,66049.0,0.26422605]
[1728944202141,0.02062589,66050.0,66049.0,0.75255605]
[1728944202367,0.01133811,66050.0,66049.0,0.75255605]
[1728944203948,0.01133811,66050.0,66049.0,0.75455605]
[1728944204452,0.000826,66052.0,66051.0,0.151398]
[1728944204888,0.01011159,66052.0,66051.0,0.151398]
[1728944205103,0.01215759,66052.0,66051.0,0.151398]
[1728944205308,0.01010826,66052.0,66051.0,0.151398]
[1728944205752,0.000826,66052.0,66051.0,0.151398]
[1728944205963,0.000826,66052.0,66051.0,0.152398]
[1728944206408,0.01215324,66052.0,66051.0,0.26522205]
[1728944206618,0.000826,66052.0,66051.0,0.26522205]
[1728944208623,0.01010826,66052.0,66051.0,0.26522205]
[1728944208833,0.000826,66052.0,66051.0,0.26522205]
[1728944209051,0.01010826,66052.0,66051.0,0.26522205]
[1728944209264,0.000826,66052.0,66051.0,0.26522205]
[1728944209508,0.01010826,66052.0,66051.0,0.152398]
[1728944209724,0.000826,66052.0,66051.0,0.26522205]
[1728944209939,0.01010941,66052.0,66051.0,0.26522205]
[1728944210140,0.000826,66052.0,66051.0,0.26522205]
[1728944210563,0.01010941,66052.0,66051.0,0.26522205]
[1728944210840,0.152221,66052.0,66051.0,0.001]
[1728944211039,0.17282649,66052.0,66051.0,0.001]
[1728944211258,0.16150441,66052.0,66051.0,0.001]
[1728944211468,0.17282617,66052.0,66051.0,0.001]
[1728944212119,0.17282586,66052.0,66051.0,0.001]
[1728944212713,0.02143086,66052.0,66051.0,0.001]
[1728944212918,0.02143038,66052.0,66051.0,0.001]
[1728944213372,0.02143038,66052.0,66051.0,0.152398]
[1728944213584,0.01010941,66052.0,66051.0,0.001]
[1728944213803,0.000826,66052.0,66051.0,0.001]
[1728944214014,0.01010941,66052.0,66051.0,0.001]
[1728944214235,0.01010941,66052.0,66051.0,0.152398]
[1728944214645,0.01010941,66052.0,66051.0,0.001]
[1728944214877,0.01010941,66052.0,66051.0,0.152398]
[1728944215104,0.01010941,66052.0,66051.0,0.001]
[1728944215772,0.01010941,66052.0,66051.0,0.152398]
[1728944218283,0.000826,66052.0,66051.0,0.152398]
[1728944219172,0.000826,66052.0,66051.0,0.001]
[1728944219600,0.01013375,66052.0,66051.0,0.001]
[1728944219999,0.01013375,66052.0,66051.0,0.152398]
[1728944220560,0.000826,66052.0,66051.0,0.152398]
[1728944227308,0.000826,66052.0,66051.0,0.42177817]
[1728944227545,0.000826,66052.0,66051.0,0.50905052]
[1728944228159,0.000826,66052.0,66051.0,0.50805052]
[1728944228852,0.000826,66052.0,66051.0,0.51605052]
[1728944229053,0.000826,66052.0,66051.0,0.40322647]
[1728944229666,0.000826,66052.0,66051.0,0.41222647]
[1728944231396,0.000826,66052.0,66051.0,0.32192647]
[1728944231601,0.01218116,66052.0,66051.0,0.32192647]
[1728944233764,0.15277762,66081.0,66051.0,0.47693385]
[1728944234006,0.1598,66109.0,66051.0,0.47693385]
[1728944234007,0.01513486,66094.0,66078.0,0.33847215]
[1728944234275,0.01513486,66094.0,66055.0,0.75813761]
[1728944234276,0.00041718,66147.0,66132.0,0.005]
[1728944234507,0.02370272,66176.0,66166.0,0.01]
[1728944234508,1.015857,66167.0,66166.0,0.01]
[1728944234777,0.98563,66167.0,66166.0,3.02449252]
[1728944234992,0.9083821,66188.0,66166.0,3.02449252]
[1728944234993,0.9083821,66207.0,66205.0,0.005]
[1728944235183,0.44400533,66207.0,66206.0,1.0069411]
[1728944235402,0.9083821,66228.0,66217.0,0.196018]
[1728944235623,0.9083821,66228.0,66217.0,0.305018]
[1728944235846,0.9083821,66242.0,66217.0,0.39412211]
[1728944236057,0.9083821,66242.0,66217.0,0.34854647]
[1728944236058,0.9083821,66234.0,66217.0,0.34854647]
[1728944236321,0.9083821,66227.0,66217.0,0.85352847]
[1728944236556,1.17447331,66227.0,66217.0,0.151018]
[1728944236780,1.17447331,66227.0,66217.0,0.06638807]
[1728944236781,0.0185201,66218.0,66217.0,0.06638807]
[1728944236996,0.0185201,66218.0,66202.0,0.015]
[1728944236997,0.0175201,66218.0,66210.0,0.005]
[1728944237227,0.005,66215.0,66205.0,0.04427214]
[1728944237445,0.001,66216.0,66206.0,0.9083821]
[1728944237676,0.0115201,66218.0,66206.0,0.9133821]
[1728944237903,0.0115201,66218.0,66210.0,0.005]
[1728944238122,0.0115201,66218.0,66213.0,0.005]
[1728944238339,0.0115201,66218.0,66214.0,0.005]
[1728944238551,0.0115201,66218.0,66213.0,0.005]
[1728944238980,0.0115201,66218.0,66207.0,0.04927214]
[1728944239198,0.0115201,66218.0,66192.0,0.005]
[1728944239199,0.005,66215.0,66204.0,0.04427214]
[1728944239415,0.005,66215.0,66197.0,0.08850941]
[1728944239416,0.005,66211.0,66205.0,0.9083821]
[1728944239650,0.005,66197.0,66191.0,0.22655872]
[1728944239875,0.251075,66192.0,66191.0,0.22655872]
[1728944240125,0.151093,66184.0,66183.0,0.005]
[1728944240361,0.151098,66182.0,66177.0,0.20155872]
[1728944240571,0.01928213,66181.0,66178.0,0.15352847]
[1728944240790,0.26609121,66183.0,66178.0,0.15352847]
[1728944241034,0.01927707,66180.0,66174.0,0.01]
[1728944241292,0.26609121,66176.0,66175.0,0.15352847]
[1728944241524,0.2853447,66176.0,66175.0,0.15352847]
[1728944241748,0.01925349,66176.0,66175.0,0.15452847]
[1728944241981,0.151099,66182.0,66175.0,0.15452847]
[1728944242198,0.17038078,66181.0,66178.0,0.001]
[1728944242414,0.01927878,66181.0,66178.0,0.001]
[1728944242835,0.01927878,66181.0,66180.0,0.161103]
[1728944243064,0.22655872,66190.0,66189.0,0.161082]
[1728944243294,0.22655872,66190.0,66189.0,0.31461047]
[1728944243510,0.151065,66197.0,66186.0,0.011]
[1728944243750,0.26609121,66187.0,66186.0,0.16352847]
[1728944245622,0.26609121,66187.0,66186.0,0.16452847]
[1728944245853,0.26609121,66187.0,66185.0,0.01]
[1728944246078,0.22655872,66199.0,66187.0,0.005]
[1728944246079,0.15108,66190.0,66187.0,0.005]
[1728944246307,0.26609121,66194.0,66187.0,0.01]
[1728944246559,0.302134,66196.0,66187.0,0.01]
[1728944246780,0.22655872,66199.0,66187.0,0.01]
[1728944247002,0.302128,66197.0,66185.0,0.01]
[1728944247215,0.22655872,66199.0,66187.0,0.01]
[1728944247216,0.151075,66193.0,66187.0,0.01]
[1728944247920,0.22655872,66199.0,66187.0,0.01]
[1728944247921,0.151077,66192.0,66187.0,0.01]
[1728944248150,1.52010618,66306.0,66178.0,0.22655872]
[1728944248151,0.01,66211.0,66190.0,0.01]
[1728944248374,0.22655872,66199.0,66198.0,0.151061]
[1728944248599,0.22655872,66199.0,66193.0,0.156071]
[1728944248819,0.151054,66202.0,66193.0,0.15852847]
[1728944249042,0.01,66211.0,66193.0,0.15852847]
[1728944249043,0.151051,66203.0,66193.0,0.15852847]
[1728944249262,0.16426299,66201.0,66193.0,0.16517115]
[1728944249484,0.151057,66200.0,66193.0,0.16517115]
[1728944249709,0.151057,66200.0,66187.0,0.01]
[1728944249710,0.5814079,66200.0,66187.0,0.01]
[1728944249933,0.2792919,66200.0,66191.0,0.01]
[1728944250166,0.302137,66196.0,66190.0,0.01]
[1728944250416,0.01320069,66200.0,66196.0,0.01]
[1728944250611,0.22655872,66209.0,66196.0,0.16352847]
[1728944250836,0.22655872,66202.0,66201.0,0.151055]
[1728944251050,0.22655872,66209.0,66196.0,0.16517792]
[1728944251273,0.22655872,66209.0,66201.0,0.151053]
[1728944251492,0.22655872,66209.0,66202.0,0.151051]
[1728944251738,0.22655872,66209.0,66197.0,0.302125]
[1728944251958,0.151044,66206.0,66197.0,0.151064]
[1728944252179,0.151042,66207.0,66198.0,0.15106]
[1728944252402,0.151042,66207.0,66196.0,0.16352847]
[1728944252617,0.151044,66206.0,66196.0,0.31459347]
[1728944252831,0.151044,66206.0,66197.0,0.151063]
[1728944253077,0.151044,66206.0,66196.0,0.16517447]
[1728944253078,0.402062,66212.0,66202.0,0.151051]
[1728944253297,0.37759472,66210.0,66201.0,0.151053]
[1728944253520,0.151033,66211.0,66201.0,0.151052]
[1728944253738,0.22655872,66210.0,66202.0,0.15105]
[1728944253955,0.22655872,66203.0,66198.0,0.15106]
[1728944254174,0.26609121,66205.0,66197.0,0.01]
[1728944254663,0.22655872,66203.0,66197.0,0.01]
[1728944254864,0.151051,66203.0,66197.0,0.01]
[1728944255035,0.26609121,66205.0,66197.0,0.01]
[1728944255456,0.16323471,66204.0,66197.0,0.01]
[1728944255628,0.151051,66203.0,66197.0,0.01]
[1728944255872,0.01218571,66204.0,66197.0,0.011]
[1728944256120,0.26609121,66205.0,66197.0,0.01]
[1728944256121,0.01217813,66202.0,66197.0,0.01]
[1728944256288,0.151058,66200.0,66197.0,0.01]
[1728944256526,0.31428292,66203.0,66196.0,0.001646]
[1728944256527,0.151064,66197.0,66196.0,0.001646]
[1728944256888,0.16322688,66197.0,66196.0,0.001646]
[1728944257278,0.42931809,66197.0,66196.0,0.001646]
[1728944257483,0.27825409,66197.0,66196.0,0.001646]
[1728944257697,0.42931809,66197.0,66196.0,0.001646]
[1728944258761,0.43431809,66197.0,66196.0,0.001646]
[1728944263477,0.16838638,66197.0,66196.0,0.001646]
[1728944266306,0.01232238,66197.0,66196.0,0.007646]
[1728944266537,0.22655872,66224.0,66204.0,0.302095]
[1728944266538,0.22655872,66210.0,66204.0,0.302095]
[1728944266756,0.22655872,66210.0,66208.0,0.151039]
[1728944266980,0.22655872,66217.0,66208.0,0.152039]
[1728944267231,0.00086549,66219.0,66217.0,0.151018]
[1728944267451,0.00086549,66219.0,66216.0,0.01]
[1728944268113,0.00086549,66219.0,66210.0,0.005]
[1728944268114,0.26609121,66217.0,66210.0,0.005]
[1728944268334,0.26609121,66211.0,66210.0,0.005]
[1728944268551,0.26609121,66216.0,66210.0,0.23655872]
[1728944268770,0.00086549,66219.0,66217.0,0.151018]
[1728944269673,0.00086549,66219.0,66217.0,0.30856658]
[1728944269876,0.00086549,66219.0,66217.0,0.31454647]
[1728944270090,0.00086549,66219.0,66217.0,0.31554647]
[1728944270965,0.00086549,66219.0,66217.0,1.01554647]
[1728944271198,0.00086549,66219.0,66217.0,1.01454647]
[1728944271421,0.00086549,66219.0,66217.0,1.01554647]
[1728944271638,0.00086549,66219.0,66217.0,1.28663768]
[1728944272078,0.00086549,66219.0,66217.0,1.39663768]
[1728944272330,0.00086549,66219.0,66218.0,0.276016]
[1728944272557,0.00086549,66219.0,66218.0,1.18778799]
[1728944272991,0.00086549,66219.0,66218.0,1.12954447]
[1728944273201,0.22655872,66251.0,66237.0,0.160973]
[1728944273424,0.22655872,66251.0,66237.0,0.861973]
[1728944273425,0.00790636,66238.0,66237.0,0.861973]
[1728944273937,0.0005,66238.0,66237.0,0.876973]
[1728944274167,0.0005,66238.0,66237.0,1.03421652]
[1728944274603,0.0005,66238.0,66237.0,1.30030773]
[1728944274824,0.22655872,66244.0,66243.0,0.261959]
[1728944275041,0.22655872,66251.0,66250.0,0.161943]
[1728944275269,0.22655872,66251.0,66250.0,0.31547147]
[1728944275488,0.22655872,66258.0,66255.0,0.150931]
[1728944275692,0.22655872,66258.0,66253.0,0.01]
[1728944275907,0.26691621,66259.0,66255.0,0.7]
[1728944276604,0.000825,66259.0,66255.0,0.7]
[1728944276793,0.26609121,66256.0,66255.0,0.7]
[1728944277014,0.26609121,66256.0,66253.0,0.005]
[1728944277439,0.26609121,66256.0,66242.0,0.01]
[1728944277644,0.000825,66259.0,66242.0,0.01]
[1728944277645,0.26609121,66250.0,66247.0,0.22655872]
[1728944277866,0.26609121,66250.0,66246.0,0.005]
[1728944278074,0.26609121,66250.0,66247.0,0.005]
[1728944278280,0.26609121,66250.0,66248.0,0.005]
[1728944278487,0.26609121,66250.0,66243.0,0.150957]
[1728944278700,0.26609121,66250.0,66245.0,0.005]
[1728944278908,0.26609121,66250.0,66242.0,0.01]
[1728944279102,0.26609121,66250.0,66238.0,0.30194]
[1728944279103,0.26609121,66250.0,66243.0,0.150958]
[1728944279313,0.26609121,66244.0,66241.0,0.005]
[1728944279525,0.26609121,66244.0,66242.0,0.04367161]
[1728944279730,0.26609121,66244.0,66241.0,0.005]
[1728944279944,0.26609121,66244.0,66237.0,0.22655872]
[1728944279945,0.26609121,66244.0,66237.0,0.27023033]
[1728944280151,0.26609121,66244.0,66237.0,0.22655872]
[1728944280360,0.26609121,66244.0,66238.0,0.005]
[1728944280584,0.26609121,66244.0,66239.0,0.04367161]
[1728944280791,0.26609121,66244.0,66240.0,0.04367161]
[1728944280792,0.005,66241.0,66240.0,0.04367161]
[1728944281018,0.27109121,66241.0,66235.0,0.04367161]
[1728944281497,0.27109121,66241.0,66234.0,0.04367161]
[1728944281736,0.150972,66238.0,66233.0,0.04367161]
[1728944281969,0.57302121,66241.0,66233.0,0.04367161]
[1728944281970,0.1583718,66237.0,66233.0,0.04367161]
[1728944282184,0.0073988,66237.0,66233.0,0.04367161]
[1728944282389,0.301934,66240.0,66233.0,0.04367161]
[1728944282616,0.0074089,66239.0,66233.0,0.04367161]
[1728944282835,0.0074089,66239.0,66234.0,0.001]
[1728944283062,0.0074089,66239.0,66238.0,0.20464161]
[1728944283282,0.22655872,66248.0,66246.0,0.150952]
[1728944283508,0.22655872,66248.0,66247.0,0.15095]
[1728944283738,0.1,66255.0,66243.0,0.06651361]
[1728944283739,0.1,66255.0,66246.0,0.0443424]
[1728944283966,0.22655872,66255.0,66254.0,0.150932]
[1728944284178,0.22655872,66255.0,66252.0,0.1952794]
[1728944284379,0.150927,66257.0,66253.0,0.0443424]
[1728944284592,0.301837,66261.0,66251.0,0.0443424]
[1728944284814,0.150934,66254.0,66252.0,0.0443424]
[1728944285043,0.150934,66254.0,66246.0,0.10917904]
[1728944285044,0.150949,66248.0,66246.0,0.0443424]
[1728944285273,0.26609121,66255.0,66247.0,0.22655872]
[1728944285498,0.301878,66252.0,66245.0,0.0443424]
[1728944285712,0.150945,66250.0,66243.0,0.0443424]
[1728944285918,0.45538147,66258.0,66247.0,0.150948]
[1728944285919,0.150933,66255.0,66247.0,0.150948]
[1728944286133,0.32655872,66257.0,66250.0,0.001]
[1728944286341,0.32655872,66257.0,66248.0,0.150946]
[1728944286555,0.32655872,66257.0,66249.0,0.301888]
[1728944286985,0.1,66258.0,66251.0,0.301878]
[1728944287197,0.100825,66259.0,66253.0,0.150935]
[1728944287621,0.100825,66259.0,66253.0,0.301872]
[1728944287850,0.100825,66259.0,66254.0,0.150933]
[1728944288293,0.100825,66259.0,66253.0,0.150936]
[1728944288916,0.1,66257.0,66249.0,0.0443424]
[1728944289149,0.000825,66259.0,66251.0,0.30188]
[1728944289368,0.1,66258.0,66254.0,0.150933]
[1728944289788,0.000823,66255.0,66251.0,0.30188]
[1728944290200,0.000823,66255.0,66251.0,0.34614743]
[1728944290431,0.000823,66255.0,66254.0,0.151934]
[1728944290643,0.000823,66255.0,66254.0,0.150934]
[1728944291071,0.000823,66255.0,66254.0,0.151934]
[1728944291303,0.000823,66255.0,66253.0,0.04426743]
[1728944291304,0.000825,66259.0,66253.0,0.04426743]
[1728944291524,0.000825,66259.0,66253.0,0.001]
[1728944291774,0.000825,66259.0,66255.0,0.150931]
[1728944292008,0.000825,66259.0,66253.0,0.001]
[1728944292217,0.000825,66259.0,66255.0,0.150929]
[1728944292648,0.000825,66259.0,66254.0,0.301866]
[1728944292848,0.000825,66259.0,66255.0,0.150931]
[1728944293059,0.000825,66259.0,66253.0,0.001]
[1728944293268,0.000825,66259.0,66251.0,0.001]
[1728944293496,0.000825,66259.0,66249.0,0.01]
[1728944293497,0.37748772,66257.0,66249.0,0.01]
[1728944293696,0.26609121,66257.0,66249.0,0.01]
[1728944294041,0.26609121,66252.0,66238.0,0.22655872]